lending/lending_fUSD_20250424
["ID","MTS","AMOUNT","RATE_DAILY","PERIOD"]
[358882956,1745523032873,-500.0,0.00019734,2]
[358882959,1745523032883,-500.0,0.00019734,2]
[358882961,1745523032893,-500.0,0.00019734,2]
[358882963,1745523032903,-500.0,0.00019734,2]
[358882964,1745523032914,-500.0,0.00019734,2]
[358882965,1745523032924,-500.0,0.00019734,2]
[358882966,1745523032934,-407.7870296,0.00019734,2]
[358882967,1745523032944,-500.0,0.00019734,2]
[358882968,1745523032953,-500.0,0.00019734,2]
[358882969,1745523032963,-500.0,0.00019734,2]
[358882970,1745523032973,-500.0,0.00019734,2]
[358882971,1745523032983,-9999.99,0.00019738,2]
[358882972,1745523032993,-9999.99,0.00019738,2]
[358882973,1745523033003,-421.27,0.00019738,2]
[358882974,1745523033012,-255.06,0.00019738,2]
[358882975,1745523033023,-1833.251,0.00019739,2]
[358882976,1745523033033,-175.596,0.00019739,2]
[358882977,1745523033044,-6441.18,0.00019739,2]
[358882978,1745523033056,-650.98,0.0001974,2]
[358882979,1745523033069,-11631.37,0.0001974,2]
[358882980,1745523033088,-1194.94307055,0.000198,2]
[358882981,1745523033100,-150.0,0.000198,2]
[358882982,1745523033113,-155.21,0.00019866,2]
[358882983,1745523033125,-500.0,0.00019873,2]
[358882984,1745523033137,-500.0,0.00019873,2]
[358882985,1745523033148,-1054.26607906,0.00019884,2]
[358882986,1745523033160,-14765.07160282,0.00019889,2]
[358882987,1745523033171,-4849.63169898,0.00019899,2]
[358882988,1745523033182,-534.5893,0.000199,2]
[358882989,1745523033193,-767.157,0.000199,2]
[358882990,1745523033204,-265.9975,0.000199,2]
[358882991,1745523033215,-168.79062579,0.000199,2]
[358882992,1745523033226,-935.9673,0.000199,2]
[358882993,1745523033237,-168.26252116,0.000199,2]
[358882994,1745523033248,-2207.2317,0.000199,2]
[358882995,1745523033259,-158.90007297,0.000199,2]
[358882996,1745523033270,-55298.20494744,0.000199,2]
[358882997,1745523033281,-50785.20405963,0.000199,2]
[358882998,1745523033291,-298.68835771,0.000199,2]
[358882999,1745523033302,-4404.28487073,0.000199,2]
[358883000,1745523033313,-540.64753303,0.000199,2]
[358883001,1745523033324,-1194.94307055,0.000199,2]
[358883002,1745523033335,-11736.91933676,0.000199,2]
[358883003,1745523033346,-14765.07160282,0.0001994,2]
[358883004,1745523033357,-1054.26607906,0.0001995,2]
[358883006,1745523033368,-15119.34933465,0.00019969,2]
[358883008,1745523033379,-3713.0,0.00019973,2]
[358883010,1745523033389,-500.0,0.00019973,2]
[358883012,1745523033399,-518.07384473,0.00019973,2]
[358883013,1745523033410,-500.0,0.00019973,2]
[358883014,1745523033421,-500.0,0.00019973,2]
[358883015,1745523033431,-530.17287326,0.00019973,2]
[358883016,1745523033444,-500.0,0.00019973,2]
[358883017,1745523033454,-300.82397261,0.00019973,2]
[358883018,1745523033465,-500.0,0.00019973,2]
[358883019,1745523033474,-499.79138344,0.00019973,2]
[358883020,1745523033485,-500.60485922,0.00019973,2]
[358883021,1745523033495,-500.52838798,0.00019973,2]
[358883022,1745523033507,-500.0,0.00019973,2]
[358883023,1745523033526,-500.0,0.00019973,2]
[358883024,1745523033543,-153.68850331,0.00019973,2]
[358883025,1745523033554,-500.76508829,0.00019973,2]
[358883026,1745523033567,-500.0,0.00019973,2]
[358883027,1745523033578,-500.0,0.00019973,2]
[358883028,1745523033589,-500.0,0.00019973,2]
[358883029,1745523033600,-15119.34933465,0.00019978,2]
[358883030,1745523033611,-662.13078995,0.0001999,2]
[358883031,1745523033623,-274.8011449,0.0001999,2]
[358883032,1745523033633,-300.0,0.00019999,2]
[358883033,1745523033644,-300.0,0.00019999,2]
[358883034,1745523033654,-500.0,0.00019999,2]
[358883035,1745523033665,-500.0,0.00019999,2]
[358883036,1745523033676,-500.0,0.00019999,2]
[358883037,1745523033687,-111.2281167,0.00019999,2]
[358883041,1745523038505,-282.6119774,0.000199,3]
[358883042,1745523038515,-121.78786516,0.00019999,2]
[358883043,1745523038666,-266.98401814,0.00019999,2]
[358883044,1745523038676,-500.0,0.00019999,2]
[358883045,1745523038686,-500.0,0.00019999,2]
[358883046,1745523038695,-500.0,0.00019999,2]
[358883047,1745523038706,-500.0,0.00019999,2]
[358883048,1745523038717,-4.36517871,0.00019999,2]
[358883049,1745523038731,-495.63482129,0.00019999,2]
[358883050,1745523038742,-500.0,0.00019999,2]
[358883051,1745523038753,-1989.9346471,0.00019999,2]
[358883052,1745523038765,-144.20468461,0.00019999,2]
[358883054,1745523038775,-151.0,0.00019999,2]
[358883056,1745523038786,-19447.89636751,0.0002,2]
[358883059,1745523040622,-500.0,0.00019699,2]
[358883060,1745523040633,-500.0,0.00019699,2]
[358883061,1745523040643,-434.19855885,0.00019699,2]
[358883062,1745523040652,-204.12977817,0.000199,2]
[358883063,1745523040662,-55562.77986889,0.0002,2]
[358883064,1745523040674,-4990.82003339,0.0002,2]
[358883065,1745523040940,-23552.80050832,0.0002,2]
[358883066,1745523040951,-4575256.25959962,0.0002,2]
[358883067,1745523040960,-113882.50322064,0.0002,2]
[358883068,1745523040970,-151.0,0.0002,2]
[358883069,1745523040980,-151.0,0.0002,2]
[358883070,1745523040990,-151.0,0.0002,2]
[358883072,1745523040999,-20057.0,0.0002,2]
[358883074,1745523041009,-151.0,0.0002,2]
[358883075,1745523041018,-151.0,0.0002,2]
[358883076,1745523041028,-151.0,0.0002,2]
[358883077,1745523041037,-151.0,0.0002,2]
[358883078,1745523041047,-151.0,0.0002,2]
[358883079,1745523041058,-521475.03454952,0.0002,2]
[358883100,1745523043314,-16438.8228314,0.0002,2]
[358883123,1745523046192,-16708.32555714,0.0002,2]
[358883124,1745523046204,-2357.73362655,0.0002,2]
[358883151,1745523064803,250.0,0.00017,2]
[358883152,1745523065873,300.0,0.00019,2]
[358883161,1745523596576,635.02,0.00017478,2]
[358883180,1745523912897,-250.0,0.00019299,2]
[358883181,1745523916249,-189.12639273,0.00019299,2]
[358883182,1745523942277,-246.872,0.00019299,2]
[358883183,1745523942831,-282.87039273,0.00019299,2]
[358883184,1745523948659,-31.13121454,0.00019299,2]
[358883185,1745523948683,-182.87039273,0.000193,2]
[358883186,1745523952443,-67.12960727,0.000193,2]
[358883187,1745523952468,-182.87039273,0.00019302,2]
[358883203,1745524113559,-17.12960727,0.00019302,2]
[358883204,1745524113583,-200.0,0.00019302,2]
[358883205,1745524113608,-161.35800312,0.00019303,2]
[358883207,1745524144506,-88.64199688,0.00019303,2]
[358883208,1745524144531,-125.36317095,0.00019304,2]
[358883241,1745524237305,-396.03682905,0.00019304,2]
[358883242,1745524237317,-200.0,0.00019304,2]
[358883243,1745524237328,-200.0,0.00019336,2]
[358883244,1745524237337,-200.0,0.00019396,2]
[358883245,1745524237348,-200.0,0.0001946,2]
[358883246,1745524237358,-2764.75,0.00019491,2]
[358883247,1745524237368,-635.02,0.00019742,2]
[358883248,1745524237377,-217.59260154,0.000198,23]
[358883249,1745524237387,-1200.0,0.00019897,2]
[358883250,1745524237397,-850.0,0.00019899,2]
[358883251,1745524237407,-300.0,0.00019899,2]
[358883252,1745524237417,-167.28667148,0.000199,2]
[358883253,1745524237426,-168.26252116,0.000199,2]
[358883254,1745524237436,-8289.91,0.000199,2]
[358883255,1745524237445,-2822.88,0.000199,2]
[358883256,1745524237455,-199.1255718,0.000199,2]
[358883257,1745524237465,-535.1,0.000199,2]
[358883258,1745524237475,-663.78161244,0.000199,2]
[358883259,1745524237484,-11345.68869224,0.000199,2]
[358883260,1745524237495,-500.0,0.00019973,2]
[358883261,1745524237504,-500.0,0.00019973,2]
[358883262,1745524237514,-459.34394019,0.00019973,2]
[358883263,1745524237523,-4142.45798575,0.0001999,2]
[358883264,1745524237533,-280.88233886,0.0001999,2]
[358883265,1745524237543,-300.0,0.00019999,2]
[358883266,1745524237552,-236.13239533,0.00019999,2]
[358883267,1745524237562,-200.16374672,0.00019999,2]
[358883268,1745524237573,-500.0,0.00019999,2]
[358883269,1745524237583,-500.0,0.00019999,2]
[358883270,1745524237593,-500.0,0.00019999,2]
[358883271,1745524237603,-500.0,0.00019999,2]
[358883272,1745524237613,-500.0,0.00019999,2]
[358883273,1745524237623,-500.0,0.00019999,2]
[358883274,1745524237632,-500.0,0.00019999,2]
[358883275,1745524237642,-500.0,0.00019999,2]
[358883276,1745524237652,-500.0,0.00019999,2]
[358883277,1745524237661,-500.0,0.00019999,2]
[358883278,1745524237671,-179.26161846,0.00019999,2]
[358883279,1745524237681,-175.59734247,0.0002,2]
[358883280,1745524237692,-745.0,0.0002,2]
[358883281,1745524237702,-926476.22012159,0.0002,2]
[358883282,1745524237715,-1214223.74089536,0.0002,2]
[358883283,1745524237725,-20164.81324046,0.0002,2]
[358883285,1745524237735,-10000.0,0.0002,2]
[358883287,1745524237744,-4300.07197207,0.0002,2]
[358883289,1745524237754,-8767.13203376,0.0002,2]
[358883291,1745524237763,-1236862.76685835,0.0002,2]
[358883462,1745524239648,-2156.88454658,0.000199,2]
[358883464,1745524239658,-351874.33809346,0.0002,2]
[358883466,1745524239668,-726.81276308,0.0002,2]
[358883468,1745524239678,-244.2623681,0.0002,2]
[358883470,1745524239687,-1502.19489104,0.0002,2]
[358883471,1745524239698,-151.0,0.0002,2]
[358883473,1745524239707,-151.0,0.0002,2]
[358883475,1745524239717,-151.0,0.0002,2]
[358883477,1745524239726,-151.0,0.0002,2]
[358883479,1745524239736,-200.0,0.0002,2]
[358883481,1745524239745,-151.0,0.0002,2]
[358883483,1745524239755,-209.400456,0.0002,2]
[358883485,1745524239764,-209.400456,0.0002,2]
[358883487,1745524239773,-1466.601,0.0002,2]
[358883489,1745524239785,-64161.89765871,0.0002,2]
[358883491,1745524239794,-200.0,0.0002,2]
[358883493,1745524239803,-8988.16715886,0.0002001,2]
[358883495,1745524239814,-4955.49028637,0.0002001,2]
[358883497,1745524239823,-5772.0,0.0002001,2]
[358883499,1745524239833,-1672.50399398,0.0002015,2]
[358883501,1745524239843,-12808.74845365,0.00020195,2]
[358883503,1745524239852,-150.0,0.000202,2]
[358883505,1745524239864,-150.0,0.000202,2]
[358883507,1745524239873,-200.0,0.000202,2]
[358883509,1745524239882,-23900.0,0.00020279,2]
[358883511,1745524239892,-1669.08,0.00020303,2]
[358883513,1745524239901,-250.0,0.00020336,2]
[358883515,1745524239911,-200.0,0.00020402,2]
[358883517,1745524239921,-20696.53,0.00020548,2]
[358883519,1745524239931,-300.0,0.00020577,2]
[358883521,1745524239940,-200.0,0.00020606,2]
[358883523,1745524239949,-21907.64221592,0.000207,2]
[358883525,1745524239959,-200.0,0.00020812,2]
[358883527,1745524239969,-7984.32,0.00020822,2]
[358883529,1745524239978,-20000.0,0.00021,2]
[358883531,1745524239988,-500.0,0.00021,2]
[358883533,1745524239998,-151.0,0.00021,2]
[358883536,1745524240008,-151.0,0.00021,2]
[358883538,1745524240018,-151.0,0.00021,2]
[358883540,1745524240029,-158.070686,0.00021,2]
[358883542,1745524240038,-158.070686,0.00021,2]
[358883544,1745524240049,-151.0,0.00021,2]
[358883546,1745524240059,-151.0,0.00021,2]
[358883548,1745524240068,-151.0,0.00021,2]
[358883550,1745524240078,-1153.83269602,0.00021,2]
[358883552,1745524240088,-190.43436191,0.00021,2]
[358883553,1745524240098,-350.0,0.00021,2]
[358883555,1745524240109,-200.0,0.00021,2]
[358883558,1745524240119,-200.0,0.00021,2]
[358883559,1745524240131,-200.0,0.00021,2]
[358883562,1745524240141,-151.0,0.00021004,2]
[358883564,1745524240151,-390.917466,0.00021075,2]
[358883565,1745524240160,-390.917466,0.00021075,2]
[358883567,1745524240169,-273.674149,0.00021075,2]
[358883569,1745524240178,-273.674149,0.00021075,2]
[358883571,1745524240188,-355.648102,0.00021075,2]
[358883574,1745524240199,-355.648102,0.00021075,2]
[358883576,1745524240208,-250.0,0.00021232,2]
[358883578,1745524240218,-200.0,0.00021232,2]
[358883580,1745524240228,-200.0,0.00021235,2]
[358883582,1745524240237,-250.0,0.00021235,2]
[358883584,1745524240247,-665.59,0.000215,2]
[358883586,1745524240256,-159.57716,0.00021601,2]
[358883588,1745524240266,-151.0,0.00021601,2]
[358883589,1745524240276,-151.0,0.00021601,2]
[358883591,1745524240286,-420.0,0.0002167,2]
[358883593,1745524240296,-7309.44299917,0.000217,2]
[358883595,1745524240306,-1000.0,0.00021711,2]
[358883598,1745524240316,-1680.0,0.00021772,2]
[358883599,1745524240326,-5434.0,0.000218,2]
[358883601,1745524240336,-151.0,0.000218,2]
[358883603,1745524240345,-151.0,0.000218,2]
[358883605,1745524240355,-151.0,0.000218,2]
[358883607,1745524240365,-5563.0,0.000219,5]
[358883609,1745524240375,-205.83,0.00021918,2]
[358883611,1745524240384,-500.0,0.00021918,30]
[358883613,1745524240394,-500.0,0.00021918,30]
[358883615,1745524240403,-500.0,0.00021918,30]
[358883617,1745524240414,-500.0,0.00021918,30]
[358883619,1745524240423,-500.0,0.00021918,30]
[358883621,1745524240434,-500.0,0.00021918,30]
[358883623,1745524240445,-500.0,0.00021918,30]
[358883625,1745524240455,-615.76452328,0.00021918,30]
[358883627,1745524240464,-300.0,0.00021947,2]
[358883629,1745524240473,-247.57318465,0.00022,2]
[358883631,1745524240483,-500.0,0.00022,2]
[358883633,1745524240492,-304.78,0.00022,2]
[358883635,1745524240502,-899.46,0.00022,30]
[358883637,1745524240511,-2967.33,0.00022,30]
[358883639,1745524240521,-635.02,0.00022006,2]
[358883641,1745524240530,-200.0,0.000221,2]
[358883643,1745524240539,-232.01286081,0.0002211,2]
[358883645,1745524240550,-158.34,0.0002236,2]
[358883647,1745524240560,-500.0,0.00022473,2]
[358883649,1745524240570,-500.0,0.00022473,2]
[358883651,1745524240579,-325.65778398,0.00022473,2]
[358883653,1745524240588,-500.0,0.00022473,2]
[358883655,1745524240598,-500.0,0.00022473,2]
[358883657,1745524240607,-300.0,0.00022499,2]
[358883659,1745524240617,-500.0,0.00022499,2]
[358883661,1745524240627,-500.0,0.00022499,2]
[358883663,1745524240636,-500.0,0.00022499,2]
[358883665,1745524240645,-500.0,0.00022499,2]
[358883667,1745524240655,-500.0,0.00022499,2]
[358883669,1745524240665,-500.0,0.00022499,2]
[358883671,1745524240674,-500.0,0.00022499,2]
[358883673,1745524240683,-500.0,0.00022499,2]
[358883675,1745524240693,-500.0,0.00022499,2]
[358883677,1745524240702,-500.0,0.00022499,2]
[358883679,1745524240712,-34239.90067162,0.000225,2]
[358883681,1745524240721,-151.0,0.000225,7]
[358883683,1745524240731,-151.0,0.000225,7]
[358883685,1745524240740,-209.400456,0.000225,7]
[358883687,1745524240749,-209.400456,0.000225,7]
[358883689,1745524240759,-505.02877889,0.0002271,2]
[358883691,1745524240770,-150.0,0.00022885,5]
[358883693,1745524240779,-400.0,0.00023,2]
[358883695,1745524240791,-403.14427137,0.0002301,2]
[358883697,1745524240801,-151.0,0.0002321,7]
[358883699,1745524240811,-158.070686,0.0002321,7]
[358883701,1745524240820,-158.070686,0.0002321,7]
[358883703,1745524240830,-151.0,0.00023341,7]
[358883705,1745524240839,-151.0,0.00023341,7]
[358883707,1745524240848,-151.0,0.00023341,7]
[358883709,1745524240858,-200.0,0.000235,2]
[358883711,1745524240868,-587.0,0.00023599,2]
[358883713,1745524240879,-2351.0,0.00023824,2]
[358883715,1745524240888,-854.33,0.00023836,2]
[358883717,1745524240898,-984.80185493,0.00024,2]
[358883719,1745524240907,-786.13648348,0.0002402,2]
[358883721,1745524240917,-151.0,0.00024025,7]
[358883723,1745524240926,-1000.0,0.00024123,2]
[358883725,1745524240935,-300.3824,0.00024167,7]
[358883727,1745524240945,-151.0,0.00024167,7]
[358883729,1745524240956,-151.0,0.00024167,7]
[358883731,1745524240966,-151.0,0.00024167,7]
[358883733,1745524240975,-444.169321,0.00024167,7]
[358883735,1745524240986,-444.169321,0.00024167,7]
[358883737,1745524240995,-154.100858,0.00024167,7]
[358883739,1745524241006,-194.637015,0.00024167,7]
[358883741,1745524241015,-194.637015,0.00024167,7]
[358883743,1745524241024,-511.316107,0.00024167,7]
[358883745,1745524241034,-511.316107,0.00024167,7]
[358883747,1745524241043,-407.01554297,0.0002421,2]
[358883749,1745524241054,-3566.20448392,0.0002421,2]
[358883751,1745524241064,-167.28667142,0.00024267,2]
[358883753,1745524241074,-635.02,0.0002427,2]
[358883755,1745524241083,-151.0,0.00024314,7]
[358883757,1745524241093,-37.45786599,0.00024411,2]
[358883897,1745524242675,-671.0,0.0002,2]
[358883899,1745524242686,-462.54213401,0.00024411,2]
[358883901,1745524242695,-344.82834325,0.00024411,2]
[358883902,1745524242705,-1000.0,0.00024658,2]
[358883904,1745524242714,-593.51,0.00024658,2]
[358883906,1745524242723,-177.529015,0.000247,7]
[358883907,1745524242733,-158.63845,0.000247,7]
[358883909,1745524242743,-151.0,0.000247,7]
[358883911,1745524242752,-151.0,0.000247,7]
[358883913,1745524242761,-500.0,0.00024773,2]
[358883915,1745524242771,-499.68879619,0.00024773,2]
[358883916,1745524242782,-159.71799555,0.00024773,2]
[358883918,1745524242792,-624.99614584,0.00024773,2]
[358883920,1745524242801,-504.846715,0.00024773,2]
[358883921,1745524242811,-152.17652093,0.00024773,2]
[358883923,1745524242820,-502.55884876,0.00024773,2]
[358883925,1745524242830,-502.08038095,0.00024773,2]
[358883927,1745524242840,-300.0,0.00024799,10]
[358883929,1745524242849,-500.0,0.00024799,2]
[358883930,1745524242860,-500.0,0.00024799,2]
[358883932,1745524242870,-500.0,0.00024799,2]
[358883934,1745524242880,-500.0,0.00024799,2]
[358883936,1745524242889,-500.0,0.00024799,2]
[358883938,1745524242898,-500.0,0.00024799,2]
[358883939,1745524242907,-500.0,0.00024799,2]
[358883941,1745524242917,-500.0,0.00024799,2]
[358883943,1745524242927,-500.0,0.00024799,2]
[358883945,1745524242936,-205.38,0.00024799,2]
[358883946,1745524242946,-160.445241,0.000248,7]
[358883948,1745524242956,-151.0,0.000248,7]
[358883950,1745524242966,-151.0,0.000248,7]
[358883952,1745524242975,-151.0,0.000248,7]
[358883954,1745524242985,-158.070686,0.000248,7]
[358883955,1745524242995,-158.070686,0.000248,7]
[358883957,1745524243004,-151.0,0.000248,7]
[358883959,1745524243013,-151.0,0.000248,7]
[358883960,1745524243023,-151.0,0.000248,7]
[358883963,1745524243032,-151.0,0.000248,7]
[358883966,1745524243041,-151.0,0.000248,7]
[358883970,1745524243063,-151.0,0.000248,7]
[358883971,1745524243075,-280.109296,0.000248,7]
[358883973,1745524243085,-158.084154,0.000248,7]
[358883975,1745524243095,-151.0,0.000248,7]
[358883977,1745524243105,-151.0,0.000248,7]
[358883979,1745524243116,-151.0,0.000248,7]
[358883980,1745524243127,-151.0,0.000248,7]
[358883982,1745524243137,-151.0,0.000248,7]
[358883984,1745524243147,-151.0,0.000248,7]
[358883986,1745524243157,-390.917466,0.000248,7]
[358883988,1745524243167,-390.917466,0.000248,7]
[358883989,1745524243176,-444.169321,0.000248,7]
[358883991,1745524243186,-444.169321,0.000248,7]
[358883993,1745524243197,-273.674149,0.000248,7]
[358883995,1745524243206,-273.674149,0.000248,7]
[358883997,1745524243216,-151.0,0.000248,7]
[358883998,1745524243226,-151.0,0.000248,7]
[358884000,1745524243236,-693.520204,0.000248,7]
[358884002,1745524243246,-693.520204,0.000248,7]
[358884004,1745524243256,-693.520204,0.000248,7]
[358884005,1745524243265,-693.520204,0.000248,7]
[358884007,1745524243275,-151.0,0.000248,7]
[358884009,1745524243285,-294.049152,0.000248,7]
[358884011,1745524243295,-194.637015,0.000248,7]
[358884012,1745524243305,-194.637015,0.000248,7]
[358884014,1745524243315,-355.648102,0.000248,7]
[358884016,1745524243325,-355.648102,0.000248,7]
[358884018,1745524243335,-511.316107,0.000248,7]
[358884020,1745524243344,-511.316107,0.000248,7]
[358884021,1745524243354,-151.0,0.000248,7]
[358884023,1745524243364,-151.0,0.000248,7]
[358884025,1745524243374,-151.0,0.000248,7]
[358884027,1745524243384,-209.400456,0.000248,7]
[358884028,1745524243394,-209.400456,0.000248,7]
[358884030,1745524243405,-41455.3774921,0.000248,3]
[358884032,1745524243420,-240590.93066006,0.000248,3]
[358884034,1745524243432,-140677.65345531,0.000248,3]
[358884202,1745524245379,-205.38,0.00024799,2]
[358884204,1745524245389,-205.38,0.00024799,2]
[358884206,1745524245400,-205.38,0.00024799,2]
[358884208,1745524245410,-205.38,0.00024799,2]
[358884210,1745524245420,-205.38,0.00024799,2]
[358884212,1745524245430,-205.38,0.00024799,2]
[358884214,1745524245441,-205.38,0.00024799,2]
[358884216,1745524245451,-205.38,0.00024799,2]
[358884218,1745524245461,-205.38,0.00024799,2]
[358884220,1745524245471,-158764.14910864,0.000248,3]
[358884223,1745524245487,-3347.89821619,0.000248,3]
[358884225,1745524245500,-26293.6568117,0.000248,3]
[358884227,1745524245511,-500.0,0.00024873,2]
[358884229,1745524245521,-500.0,0.00024899,2]
[358884232,1745524245532,-500.0,0.00024899,2]
[358884234,1745524245542,-500.0,0.00024899,2]
[358884236,1745524245554,-500.0,0.00024899,2]
[358884238,1745524245565,-500.0,0.00024899,2]
[358884240,1745524245575,-500.0,0.00024899,2]
[358884242,1745524245585,-500.0,0.00024899,2]
[358884244,1745524245595,-234.35508582,0.00024899,2]
[358884246,1745524245611,-209.242203,0.000249,7]
[358884248,1745524245631,-151.0,0.000249,7]
[358884250,1745524245642,-151.0,0.000249,7]
[358884252,1745524245652,-158.070686,0.000249,7]
[358884255,1745524245667,-158.070686,0.000249,7]
[358884257,1745524245678,-151.962676,0.000249,7]
[358884259,1745524245688,-151.0,0.000249,7]
[358884261,1745524245699,-151.0,0.000249,7]
[358884264,1745524245710,-151.0,0.000249,7]
[358884266,1745524245720,-151.0,0.000249,7]
[358884268,1745524245730,-151.0,0.000249,7]
[358884270,1745524245741,-151.0,0.000249,7]
[358884272,1745524245751,-152.544242,0.000249,7]
[358884274,1745524245761,-301.07813,0.000249,7]
[358884276,1745524245771,-151.0,0.000249,7]
[358884278,1745524245783,-151.0,0.000249,7]
[358884280,1745524245795,-280.109296,0.000249,7]
[358884282,1745524245806,-151.0,0.000249,7]
[358884284,1745524245816,-151.0,0.000249,7]
[358884286,1745524245827,-151.0,0.000249,7]
[358884288,1745524245837,-151.0,0.000249,7]
[358884290,1745524245847,-165.815131,0.000249,7]
[358884292,1745524245860,-151.0,0.000249,7]
[358884295,1745524245872,-369.40535756,0.000249,7]
[358884842,1745524890878,250.0,0.00017,2]
[358884843,1745524891952,300.0,0.00019,2]
[358884977,1745525431866,-200.0,0.00020931,2]
[358884978,1745525431876,-200.0,0.00020937,2]
[358884979,1745525431887,-350.0,0.00021,2]
[358884980,1745525431896,-200.0,0.00021103,2]
[358884981,1745525431906,-452.05721456,0.000215,2]
[358884982,1745525431919,-146.97278544,0.000215,2]
[358884983,1745525431930,-250.0,0.0002189,2]
[358884984,1745525431940,-46.10631551,0.00021917,2]
[358885223,1745525440271,-225.81368449,0.00021917,2]
[358885225,1745525440281,-304.19,0.00022279,2]
[358885227,1745525440291,-400.0,0.00023,2]
[358885229,1745525440301,-46.21457141,0.00023018,2]
[358885231,1745525440313,-153.78542859,0.00023018,2]
[358885275,1745525440752,-112.00457141,0.00023018,2]
[358885464,1745525442729,-87.99542859,0.00023018,2]
[358885466,1745525442740,-271.92,0.00023287,2]
[358885468,1745525442750,-11.18456741,0.000233,2]
[358885483,1745525442890,-293.34543259,0.000233,2]
[358885485,1745525442900,-304.99,0.000233,2]
[358885487,1745525442909,-539.77,0.00024581,2]
[358885489,1745525442919,-271.92,0.00024657,2]
[358885491,1745525442930,-440.83,0.00024672,2]
[358885494,1745525442940,-226.04864982,0.0002489,2]
[358885496,1745525442950,-1200.0,0.00024896,2]
[358885498,1745525442960,-300.0,0.00024897,2]
[358885500,1745525442970,-2134.13933171,0.00024898,2]
[358885502,1745525442980,-2134.13933171,0.00024898,2]
[358885504,1745525442990,-151.0,0.00024898,2]
[358885507,1745525443006,-151.0,0.00024898,2]
[358885509,1745525443016,-151.0,0.000249,7]
[358885511,1745525443026,-151.0,0.000249,7]
[358885513,1745525443036,-151.0,0.000249,7]
[358885515,1745525443046,-151.0,0.000249,7]
[358885517,1745525443056,-151.0,0.000249,7]
[358885519,1745525443066,-151.0,0.000249,7]
[358885521,1745525443075,-151.0,0.000249,7]
[358885523,1745525443085,-151.0,0.000249,7]
[358885525,1745525443095,-151.0,0.000249,7]
[358885527,1745525443105,-151.0,0.000249,7]
[358885529,1745525443115,-151.0,0.000249,7]
[358885531,1745525443125,-151.0,0.000249,7]
[358885533,1745525443135,-151.0,0.000249,7]
[358885536,1745525443146,-151.0,0.000249,7]
[358885539,1745525443157,-151.0,0.000249,7]
[358885542,1745525443171,-151.0,0.000249,7]
[358885545,1745525443181,-10967.49906932,0.000249,5]
[358885548,1745525443191,-9894.3670999,0.00024907,2]
[358885551,1745525443202,-207.4,0.00024924,2]
[358885554,1745525443212,-151.0,0.00024924,2]
[358885557,1745525443223,-151.0,0.00024968,2]
[358885560,1745525443233,-668.65185757,0.00024968,2]
[358885563,1745525443245,-151.0,0.00024968,2]
[358885567,1745525443256,-450.0,0.00025,2]
[358885571,1745525443266,-703.21,0.00025382,2]
[358885574,1745525443277,-151.0,0.00025472,2]